[Event "RUS-ch Blitz 2021"]
[Site "Sochi"]
[Date "2021.10.11"]
[Round "8.17"]
[White "Grachev, Boris"]
[Black "Pershin, Denis"]
[Result "0-1"]
[ECO "D00"]
[WhiteElo "2615"]
[BlackElo "2388"]
[Annotator "ChessBase"]
[PlyCount "94"]
[EventDate "2021.10.11"]
[EventType "blitz"]
[EventCountry "RUS"]
[SourceTitle "playchess.com"]
[Source "ChessBase"]
[SourceQuality "1"]
[TimeControl "180+2"]

1. d4 {[%emt 0:00:00]} d5 {[%emt 0:00:00]} 2. Bf4 {[%emt 0:00:00]} Nf6 {
[%emt 0:00:03]} 3. e3 {[%emt 0:00:05]} c5 {[%emt 0:00:00]} 4. dxc5 {[%emt 0:00:
00]} e6 {[%emt 0:00:44]} 5. b4 {[%emt 0:00:01]} a5 {[%emt 0:00:02]} 6. c3 {
[%emt 0:00:01]} axb4 {[%emt 0:01:08]} 7. cxb4 {[%emt 0:00:01]} Nc6 {[%emt 0:00:
02]} 8. Bb5 {[%emt 0:00:10]} Bd7 {[%emt 0:00:07]} 9. Qb3 {[%emt 0:00:10]} Ne4 {
[%emt 0:00:30]} 10. Ne2 {[%emt 0:00:03]} Qf6 {[%emt 0:00:06]} 11. Nbc3 {
[%emt 0:00:07]} Nxf2 {[%emt 0:00:06]} 12. O-O {[%emt 0:00:12]} Ng4 {[%emt 0:00:
19]} 13. h3 {[%emt 0:00:02]} Nge5 {[%emt 0:00:05]} 14. Nd4 {[%emt 0:00:22]} Be7
{[%emt 0:00:09]} 15. Rf2 {[%emt 0:01:01]} O-O {[%emt 0:00:01]} 16. Raf1 {
[%emt 0:00:00]} Qg6 {[%emt 0:00:06]} 17. Bxe5 {[%emt 0:00:30]} Nxe5 {[%emt 0:
00:00]} 18. Bxd7 {[%emt 0:00:00]} Nxd7 {[%emt 0:00:00]} 19. Nxd5 {[%emt 0:00:
15]} exd5 {[%emt 0:00:00]} 20. Qxd5 {[%emt 0:00:00]} Nf6 {[%emt 0:00:12]} 21.
Qxb7 {[%emt 0:00:00]} Rfe8 {[%emt 0:00:00]} 22. c6 {[%emt 0:00:31]} Rab8 {
[%emt 0:00:00]} 23. Qa6 {[%emt 0:00:02]} Bxb4 {[%emt 0:00:05]} 24. c7 {[%emt 0:
00:12]} Rbc8 {[%emt 0:00:00]} 25. Nb5 {[%emt 0:00:00]} Nd5 {[%emt 0:00:02]} 26.
Qxg6 {[%emt 0:00:03]} fxg6 {[%emt 0:00:02]} 27. Rc1 {[%emt 0:00:06]} Ba5 {
[%emt 0:00:00]} 28. Rfc2 {[%emt 0:00:00]} Bb6 {[%emt 0:00:05]} 29. Nd6 {
[%emt 0:00:04]} Bxe3+ {[%emt 0:00:00]} 30. Kh1 {[%emt 0:00:00]} Bxc1 {[%emt 0:
00:05]} 31. Nxe8 {[%emt 0:00:00]} Bf4 {[%emt 0:00:02]} 32. a4 {[%emt 0:00:01]}
Kf7 {[%emt 0:00:00]} 33. Rc5 {[%emt 0:00:03]} Kxe8 {[%emt 0:00:05]} 34. Rxd5 {
[%emt 0:00:03]} Rxc7 {[%emt 0:00:00]} 35. g4 {[%emt 0:00:04]} Rc2 {[%emt 0:00:
00]} 36. a5 {[%emt 0:00:02]} Ra2 {[%emt 0:00:00]} 37. h4 {[%emt 0:00:02]} Ke7 {
[%emt 0:00:05]} 38. h5 {[%emt 0:00:00]} gxh5 {[%emt 0:00:01]} 39. gxh5 {
[%emt 0:00:03]} Ke6 {[%emt 0:00:02]} 40. Rb5 {[%emt 0:00:00]} Be5 {[%emt 0:00:
03]} 41. Rb6+ {[%emt 0:00:05]} Kf5 {[%emt 0:00:02]} 42. h6 {[%emt 0:00:00]} g5
{[%emt 0:00:03]} 43. a6 {[%emt 0:00:02]} g4 {[%emt 0:00:03]} 44. Rb7 {[%emt 0:
00:05]} g3 {[%emt 0:00:02]} 45. Rb1 {[%emt 0:00:01]} Rh2+ {[%emt 0:00:02]} 46.
Kg1 {[%emt 0:00:01]} Bd4+ {[%emt 0:00:00]} 47. Kf1 {[%emt 0:00:03]} Rh1+ {
[%emt 0:00:03]} 0-1

[Event "RUS-ch Blitz 2021"]
[Site "Sochi"]
[Date "2021.10.11"]
[Round "8.18"]
[White "Tsydypov, Zhamsaran"]
[Black "Gavrilov, Oleg"]
[Result "1/2-1/2"]
[ECO "C02"]
[WhiteElo "2526"]
[BlackElo "2356"]
[Annotator "ChessBase"]
[PlyCount "193"]
[EventDate "2021.10.11"]
[EventType "blitz"]
[EventCountry "RUS"]
[SourceTitle "playchess.com"]
[Source "ChessBase"]
[SourceQuality "1"]
[TimeControl "180+2"]

1. e4 {[%emt 0:00:04]} e6 {[%emt 0:00:12]} 2. d4 {[%emt 0:00:01]} d5 {[%emt 0:
00:00]} 3. e5 {[%emt 0:00:00]} b6 {[%emt 0:00:00]} 4. h4 {[%emt 0:00:14]} Ne7 {
[%emt 0:00:08]} 5. Nf3 {[%emt 0:00:05]} Qd7 {[%emt 0:00:01]} 6. c3 {[%emt 0:00:
26]} c5 {[%emt 0:00:11]} 7. Bd3 {[%emt 0:00:00]} Ba6 {[%emt 0:00:04]} 8. Bc2 {
[%emt 0:00:00]} Nbc6 {[%emt 0:00:30]} 9. a3 {[%emt 0:00:01]} f6 {[%emt 0:00:57]
} 10. exf6 {[%emt 0:00:26]} gxf6 {[%emt 0:00:00]} 11. Be3 {[%emt 0:00:04]} Nf5
{[%emt 0:00:12]} 12. Bxf5 {[%emt 0:00:55]} exf5 {[%emt 0:00:00]} 13. Nbd2 {
[%emt 0:00:00]} Bd6 {[%emt 0:00:10]} 14. dxc5 {[%emt 0:00:04]} bxc5 {[%emt 0:
00:00]} 15. Nb3 {[%emt 0:00:00]} d4 {[%emt 0:00:30]} 16. cxd4 {[%emt 0:00:05]}
cxd4 {[%emt 0:00:13]} 17. Nfxd4 {[%emt 0:00:10]} O-O {[%emt 0:00:09]} 18. Nxf5
{[%emt 0:00:53]} Qxf5 {[%emt 0:00:12]} 19. Qxd6 {[%emt 0:00:00]} Qb5 {[%emt 0:
00:06]} 20. Qe6+ {[%emt 0:00:00]} Kh8 {[%emt 0:00:00]} 21. O-O-O {[%emt 0:00:
02]} Rae8 {[%emt 0:00:05]} 22. Qd5 {[%emt 0:00:00]} Qxd5 {[%emt 0:00:01]} 23.
Rxd5 {[%emt 0:00:00]} Bc4 {[%emt 0:00:00]} 24. Rc5 {[%emt 0:00:03]} Bxb3 {
[%emt 0:00:00]} 25. Rxc6 {[%emt 0:00:00]} Rc8 {[%emt 0:00:00]} 26. Rxc8 {
[%emt 0:00:13]} Rxc8+ {[%emt 0:00:01]} 27. Kb1 {[%emt 0:00:00]} a5 {[%emt 0:00:
06]} 28. Bd4 {[%emt 0:00:00]} Kg7 {[%emt 0:00:00]} 29. Bc3 {[%emt 0:00:03]} a4
{[%emt 0:00:00]} 30. Re1 {[%emt 0:00:00]} Rd8 {[%emt 0:00:06]} 31. Kc1 {
[%emt 0:00:00]} Kg6 {[%emt 0:00:00]} 32. g4 {[%emt 0:00:00]} Rd5 {[%emt 0:00:
04]} 33. f3 {[%emt 0:00:08]} Rd3 {[%emt 0:00:04]} 34. Rf1 {[%emt 0:00:03]} f5 {
[%emt 0:00:00]} 35. Bd2 {[%emt 0:00:02]} fxg4 {[%emt 0:00:05]} 36. fxg4 {
[%emt 0:00:04]} h6 {[%emt 0:00:00]} 37. h5+ {[%emt 0:00:00]} Kg7 {[%emt 0:00:
00]} 38. Rf4 {[%emt 0:00:06]} Rd5 {[%emt 0:00:07]} 39. Bc3+ {[%emt 0:00:04]}
Kg8 {[%emt 0:00:00]} 40. Bd4 {[%emt 0:00:00]} Rd6 {[%emt 0:00:02]} 41. Kd2 {
[%emt 0:00:00]} Re6 {[%emt 0:00:05]} 42. Be3 {[%emt 0:00:02]} Rd6+ {[%emt 0:00:
00]} 43. Kc3 {[%emt 0:00:03]} Bd1 {[%emt 0:00:02]} 44. Rc4 {[%emt 0:00:04]} Kg7
{[%emt 0:00:04]} 45. Bf4 {[%emt 0:00:00]} Re6 {[%emt 0:00:01]} 46. Rd4 {
[%emt 0:00:03]} Bb3 {[%emt 0:00:03]} 47. Kd3 {[%emt 0:00:00]} Kf7 {[%emt 0:00:
03]} 48. Rd7+ {[%emt 0:00:03]} Kg8 {[%emt 0:00:00]} 49. Kd4 {[%emt 0:00:00]}
Bd1 {[%emt 0:00:02]} 50. Be5 {[%emt 0:00:02]} Kf8 {[%emt 0:00:02]} 51. Kd5 {
[%emt 0:00:01]} Bb3+ {[%emt 0:00:02]} 52. Ke4 {[%emt 0:00:02]} Bc2+ {[%emt 0:
00:00]} 53. Kf4 {[%emt 0:00:00]} Rc6 {[%emt 0:00:03]} 54. Bg7+ {[%emt 0:00:00]}
Kg8 {[%emt 0:00:00]} 55. Bc3 {[%emt 0:00:01]} Kf8 {[%emt 0:00:02]} 56. Bd4 {
[%emt 0:00:02]} Kg8 {[%emt 0:00:03]} 57. g5 {[%emt 0:00:03]} hxg5+ {[%emt 0:00:
00]} 58. Kxg5 {[%emt 0:00:00]} Re6 {[%emt 0:00:02]} 59. h6 {[%emt 0:00:02]}
Rg6+ {[%emt 0:00:01]} 60. Kh5 {[%emt 0:00:00]} Rg2 {[%emt 0:00:03]} 61. Be5 {
[%emt 0:00:08]} Bg6+ {[%emt 0:00:01]} 62. Kh4 {[%emt 0:00:02]} Bc2 {[%emt 0:00:
02]} 63. Rc7 {[%emt 0:00:04]} Bf5 {[%emt 0:00:01]} 64. Rg7+ {[%emt 0:00:02]}
Rxg7 {[%emt 0:00:03]} 65. hxg7 {[%emt 0:00:00]} Be6 {[%emt 0:00:05]} 66. b4 {
[%emt 0:00:04]} axb3 {[%emt 0:00:03]} 67. Bb2 {[%emt 0:00:00]} Kf7 {[%emt 0:00:
01]} 68. Kg5 {[%emt 0:00:00]} Ke7 {[%emt 0:00:03]} 69. Bc3 {[%emt 0:00:09]} Bg8
{[%emt 0:00:02]} 70. Kf5 {[%emt 0:00:01]} Kd6 {[%emt 0:00:01]} 71. Kf6 {
[%emt 0:00:00]} Bc4 {[%emt 0:00:03]} 72. Bb2 {[%emt 0:00:01]} Bg8 {[%emt 0:00:
00]} 73. Bc1 {[%emt 0:00:05]} Bc4 {[%emt 0:00:01]} 74. Bb2 {[%emt 0:00:01]} Bg8
{[%emt 0:00:01]} 75. Bc3 {[%emt 0:00:01]} Bc4 {[%emt 0:00:02]} 76. Kf5 {
[%emt 0:00:05]} Bg8 {[%emt 0:00:02]} 77. Ke4 {[%emt 0:00:02]} Kc5 {[%emt 0:00:
03]} 78. Ke5 {[%emt 0:00:01]} Kc6 {[%emt 0:00:02]} 79. Kd4 {[%emt 0:00:01]} Bf7
{[%emt 0:00:01]} 80. Bb2 {[%emt 0:00:03]} Bg8 {[%emt 0:00:02]} 81. Kc3 {
[%emt 0:00:01]} Kb5 {[%emt 0:00:01]} 82. Bc1 {[%emt 0:00:03]} Bf7 {[%emt 0:00:
01]} 83. Be3 {[%emt 0:00:01]} Bg8 {[%emt 0:00:00]} 84. Bg5 {[%emt 0:00:00]} Bf7
{[%emt 0:00:01]} 85. Be7 {[%emt 0:00:02]} Bg8 {[%emt 0:00:03]} 86. Bf6 {
[%emt 0:00:03]} Bf7 {[%emt 0:00:00]} 87. Kd2 {[%emt 0:00:03]} Ka4 {[%emt 0:00:
02]} 88. Bb2 {[%emt 0:00:02]} Kb5 {[%emt 0:00:02]} 89. Kd3 {[%emt 0:00:00]} Kc5
{[%emt 0:00:00]} 90. Ke4 {[%emt 0:00:02]} Bg8 {[%emt 0:00:02]} 91. Ke5 {
[%emt 0:00:01]} Bc4 {[%emt 0:00:02]} 92. Bc3 {[%emt 0:00:01]} Bg8 {[%emt 0:00:
02]} 93. Kf6 {[%emt 0:00:02]} Kd6 {[%emt 0:00:00]} 94. a4 {[%emt 0:00:02]} Kc5
{[%emt 0:00:05]} 95. Ke7 {[%emt 0:00:02]} b2 {[%emt 0:00:01]} 96. Bxb2 {
[%emt 0:00:01]} Kb4 {[%emt 0:00:01]} 97. Bc1 {[%emt 0:00:06]} 1/2-1/2

[Event "RUS-ch Blitz 2021"]
[Site "Sochi"]
[Date "2021.10.11"]
[Round "8.19"]
[White "Tarasov, Alexandr"]
[Black "Kokarev, Dmitry"]
[Result "0-1"]
[ECO "A31"]
[WhiteElo "2348"]
[BlackElo "2579"]
[Annotator "ChessBase"]
[PlyCount "94"]
[EventDate "2021.10.11"]
[EventType "blitz"]
[EventCountry "RUS"]
[SourceTitle "playchess.com"]
[Source "ChessBase"]
[SourceQuality "1"]
[TimeControl "180+2"]

1. d4 {[%emt 0:00:00]} Nf6 {[%emt 0:00:08]} 2. c4 {[%emt 0:00:03]} g6 {[%emt 0:
00:00]} 3. g3 {[%emt 0:00:00]} c5 {[%emt 0:00:07]} 4. Nf3 {[%emt 0:00:05]} cxd4
{[%emt 0:00:00]} 5. Nxd4 {[%emt 0:00:00]} d6 {[%emt 0:00:00]} 6. Bg2 {[%emt 0:
00:06]} h5 {[%emt 0:00:00]} 7. h3 {[%emt 0:00:06]} Bg7 {[%emt 0:00:03]} 8. Nc3
{[%emt 0:00:06]} O-O {[%emt 0:00:05]} 9. O-O {[%emt 0:00:41]} Nc6 {[%emt 0:00:
00]} 10. e3 {[%emt 0:00:00]} Bd7 {[%emt 0:00:04]} 11. b3 {[%emt 0:00:06]} Rb8 {
[%emt 0:00:07]} 12. Bb2 {[%emt 0:00:12]} a6 {[%emt 0:00:13]} 13. Rc1 {[%emt 0:
00:35]} Nxd4 {[%emt 0:00:00]} 14. Qxd4 {[%emt 0:00:07]} Qc8 {[%emt 0:00:10]}
15. Nd5 {[%emt 0:00:00]} Re8 {[%emt 0:00:00]} 16. Nb6 {[%emt 0:00:07]} Qc7 {
[%emt 0:00:05]} 17. Nxd7 {[%emt 0:00:07]} Qxd7 {[%emt 0:00:00]} 18. Rfd1 {
[%emt 0:00:12]} b6 {[%emt 0:00:06]} 19. e4 {[%emt 0:00:26]} Qa7 {[%emt 0:00:21]
} 20. f4 {[%emt 0:00:23]} Red8 {[%emt 0:00:08]} 21. Qf2 {[%emt 0:00:10]} Qc7 {
[%emt 0:00:08]} 22. e5 {[%emt 0:00:00]} Ne8 {[%emt 0:00:03]} 23. exd6 {[%emt 0:
00:01]} Rxd6 {[%emt 0:00:01]} 24. Bxg7 {[%emt 0:00:06]} Nxg7 {[%emt 0:00:00]}
25. Bf3 {[%emt 0:00:06]} a5 {[%emt 0:00:08]} 26. c5 {[%emt 0:00:02]} Rxd1+ {
[%emt 0:00:04]} 27. Bxd1 {[%emt 0:00:00]} bxc5 {[%emt 0:00:03]} 28. Qxc5 {
[%emt 0:00:01]} Qd8 {[%emt 0:00:03]} 29. Qc3 {[%emt 0:00:08]} Nf5 {[%emt 0:00:
04]} 30. Kf2 {[%emt 0:00:00]} Qd6 {[%emt 0:00:12]} 31. Bf3 {[%emt 0:00:00]} Qa3
{[%emt 0:00:07]} 32. Rc2 {[%emt 0:00:00]} Rd8 {[%emt 0:00:12]} 33. Rd2 {
[%emt 0:00:02]} Rxd2+ {[%emt 0:00:03]} 34. Qxd2 {[%emt 0:00:00]} Qc5+ {[%emt 0:
00:00]} 35. Kg2 {[%emt 0:00:00]} h4 {[%emt 0:00:03]} 36. g4 {[%emt 0:00:02]}
Nd4 {[%emt 0:00:02]} 37. Be4 {[%emt 0:00:01]} Nb5 {[%emt 0:00:05]} 38. Bf3 {
[%emt 0:00:07]} Nd6 {[%emt 0:00:00]} 39. Qf2 {[%emt 0:00:02]} Qb4 {[%emt 0:00:
01]} 40. Qxh4 {[%emt 0:00:01]} Qd2+ {[%emt 0:00:08]} 41. Qf2 {[%emt 0:00:02]}
Qxf4 {[%emt 0:00:00]} 42. Qg3 {[%emt 0:00:00]} Qb4 {[%emt 0:00:05]} 43. Qf2 {
[%emt 0:00:00]} e5 {[%emt 0:00:01]} 44. Bd5 {[%emt 0:00:00]} Kg7 {[%emt 0:00:
06]} 45. a4 {[%emt 0:00:01]} Qc3 {[%emt 0:00:03]} 46. Qf3 {[%emt 0:00:08]} Qd2+
{[%emt 0:00:00]} 47. Kg1 {[%emt 0:00:00]} e4 {[%emt 0:00:00]} 0-1

[Event "RUS-ch Blitz 2021"]
[Site "Sochi"]
[Date "2021.10.11"]
[Round "8.20"]
[White "Radzhabov, Rodion"]
[Black "Kezin, Roman"]
[Result "0-1"]
[ECO "B23"]
[WhiteElo "2361"]
[BlackElo "2492"]
[Annotator "ChessBase"]
[PlyCount "54"]
[EventDate "2021.10.11"]
[EventType "blitz"]
[EventCountry "RUS"]
[SourceTitle "playchess.com"]
[Source "ChessBase"]
[SourceQuality "1"]
[TimeControl "180+2"]

1. e4 {[%emt 0:00:00]} c5 {[%emt 0:00:00]} 2. Nc3 {[%emt 0:00:19]} Nc6 {
[%emt 0:00:00]} 3. Bb5 {[%emt 0:00:00]} Nd4 {[%emt 0:00:00]} 4. Bc4 {[%emt 0:
00:00]} e6 {[%emt 0:00:00]} 5. Nge2 {[%emt 0:00:00]} Nf6 {[%emt 0:00:23]} 6. d3
{[%emt 0:00:00]} d5 {[%emt 0:00:03]} 7. exd5 {[%emt 0:00:40]} exd5 {[%emt 0:00:
00]} 8. Bb3 {[%emt 0:00:13]} Nxb3 {[%emt 0:00:00]} 9. axb3 {[%emt 0:00:00]} d4
{[%emt 0:00:00]} 10. Ne4 {[%emt 0:00:01]} Nd5 {[%emt 0:00:17]} 11. O-O {
[%emt 0:00:10]} Be7 {[%emt 0:00:17]} 12. N2g3 {[%emt 0:00:06]} O-O {[%emt 0:00:
05]} 13. Re1 {[%emt 0:00:32]} f5 {[%emt 0:01:45]} 14. Nd2 {[%emt 0:00:00]} f4 {
[%emt 0:00:00]} 15. Nge4 {[%emt 0:00:06]} f3 {[%emt 0:00:00]} 16. Nxf3 {
[%emt 0:00:19]} Bg4 {[%emt 0:00:00]} 17. Ng3 {[%emt 0:00:17]} Bd6 {[%emt 0:00:
09]} 18. Re4 {[%emt 0:00:04]} Nf6 {[%emt 0:00:09]} 19. Re1 {[%emt 0:00:07]} Nd5
{[%emt 0:00:00]} 20. Re4 {[%emt 0:00:09]} h5 {[%emt 0:00:27]} 21. h3 {[%emt 0:
00:24]} Bxf3 {[%emt 0:00:00]} 22. gxf3 {[%emt 0:00:00]} h4 {[%emt 0:00:00]} 23.
Nf1 {[%emt 0:00:09]} Bf4 {[%emt 0:00:00]} 24. Nh2 {[%emt 0:00:02]} Qg5+ {
[%emt 0:00:13]} 25. Ng4 {[%emt 0:00:00]} Bxc1 {[%emt 0:00:00]} 26. Qxc1 {
[%emt 0:00:00]} Nf4 {[%emt 0:00:04]} 27. Kh2 {[%emt 0:00:07]} Qf5 {[%emt 0:00:
02]} 0-1

[Event "RUS-ch Blitz 2021"]
[Site "Sochi"]
[Date "2021.10.11"]
[Round "8.21"]
[White "Zubritskiy, Artyom"]
[Black "Dudin, Gleb"]
[Result "0-1"]
[ECO "A13"]
[WhiteElo "2442"]
[BlackElo "2438"]
[Annotator "NA"]
[PlyCount "96"]
[EventDate "2021.10.11"]
[EventType "blitz"]
[EventCountry "RUS"]
[SourceTitle "playchess.com"]
[Source "ChessBase"]
[SourceQuality "1"]
[TimeControl "180+2"]

1. c4 {[%emt 0:00:00]} e6 {[%emt 0:00:05]} 2. g3 {[%emt 0:00:03]} d5 {[%emt 0:
00:04]} 3. Nf3 {[%emt 0:00:02]} Nf6 {[%emt 0:00:00]} 4. Bg2 {[%emt 0:00:00]}
dxc4 {[%emt 0:00:00]} 5. Ne5 {[%emt 0:00:32]} Qd4 {[%emt 0:00:48]} 6. f4 {
[%emt 0:00:00]} Nbd7 {[%emt 0:00:08]} 7. Qa4 {[%emt 0:00:19]} Be7 {[%emt 0:00:
53]} 8. Nc3 {[%emt 0:00:40]} c6 {[%emt 0:00:26]} 9. Qxc4 {[%emt 0:00:11]} Qb6 {
[%emt 0:00:19]} 10. d4 {[%emt 0:00:30]} O-O {[%emt 0:00:10]} 11. O-O {[%emt 0:
00:21]} c5 {[%emt 0:00:16]} 12. Na4 {[%emt 0:00:16]} Qa5 {[%emt 0:00:11]} 13.
dxc5 {[%emt 0:00:23]} Nxc5 {[%emt 0:00:00]} 14. Nc3 {[%emt 0:00:00]} Ncd7 {
[%emt 0:00:04]} 15. Nd3 {[%emt 0:00:06]} Nb6 {[%emt 0:00:00]} 16. Qb3 {[%emt 0:
00:00]} Bd7 {[%emt 0:00:04]} 17. Be3 {[%emt 0:00:05]} Bc6 {[%emt 0:00:00]} 18.
Bxc6 {[%emt 0:00:07]} bxc6 {[%emt 0:00:00]} 19. Ne5 {[%emt 0:00:00]} Rfc8 {
[%emt 0:00:06]} 20. Bf2 {[%emt 0:00:00]} Rab8 {[%emt 0:00:03]} 21. Qc2 {
[%emt 0:00:01]} Nfd7 {[%emt 0:00:01]} 22. Nf3 {[%emt 0:00:06]} Nd5 {[%emt 0:00:
03]} 23. Ne4 {[%emt 0:00:02]} N7f6 {[%emt 0:00:04]} 24. Ned2 {[%emt 0:00:04]}
Nb4 {[%emt 0:00:00]} 25. Qb1 {[%emt 0:00:02]} c5 {[%emt 0:00:02]} 26. Nc4 {
[%emt 0:00:00]} Qa6 {[%emt 0:00:00]} 27. b3 {[%emt 0:00:03]} Nc6 {[%emt 0:00:
04]} 28. Qc2 {[%emt 0:00:00]} Nb4 {[%emt 0:00:04]} 29. Qc1 {[%emt 0:00:03]} Ne4
{[%emt 0:00:00]} 30. Be1 {[%emt 0:00:00]} Nd5 {[%emt 0:00:04]} 31. Qc2 {
[%emt 0:00:00]} f5 {[%emt 0:00:03]} 32. Nfe5 {[%emt 0:00:00]} Bf6 {[%emt 0:00:
02]} 33. Rd1 {[%emt 0:00:02]} Bxe5 {[%emt 0:00:02]} 34. fxe5 {[%emt 0:00:03]}
Rd8 {[%emt 0:00:00]} 35. g4 {[%emt 0:00:00]} g6 {[%emt 0:00:00]} 36. Bh4 {
[%emt 0:00:00]} Rd7 {[%emt 0:00:00]} 37. Rf3 {[%emt 0:00:09]} Qc6 {[%emt 0:00:
04]} 38. Kh1 {[%emt 0:00:02]} Nb4 {[%emt 0:00:01]} 39. Qb1 {[%emt 0:00:02]} Nc3
{[%emt 0:00:02]} 40. Rxd7 {[%emt 0:00:04]} Nxb1 {[%emt 0:00:04]} 41. Rxa7 {
[%emt 0:00:03]} Qe4 {[%emt 0:00:03]} 42. gxf5 {[%emt 0:00:03]} Qxh4 {[%emt 0:
00:02]} 43. fxe6 {[%emt 0:00:00]} Qe1+ {[%emt 0:00:02]} 44. Kg2 {[%emt 0:00:01]
} Qxe2+ {[%emt 0:00:01]} 45. Kg3 {[%emt 0:00:00]} Nd2 {[%emt 0:00:03]} 46. Nxd2
{[%emt 0:00:05]} Qxd2 {[%emt 0:00:00]} 47. e7 {[%emt 0:00:03]} Qg5+ {[%emt 0:
00:02]} 48. Kh3 {[%emt 0:00:01]} Qxe5 {[%emt 0:00:03]} 0-1

[Event "RUS-ch Blitz 2021"]
[Site "Sochi"]
[Date "2021.10.11"]
[Round "8.22"]
[White "Zakhartsov, Vladimir"]
[Black "Grebnev, Aleksey"]
[Result "1-0"]
[ECO "E62"]
[WhiteElo "2514"]
[BlackElo "2469"]
[Annotator "ChessBase"]
[PlyCount "122"]
[EventDate "2021.10.11"]
[EventType "blitz"]
[EventCountry "RUS"]
[SourceTitle "playchess.com"]
[Source "ChessBase"]
[SourceQuality "1"]
[TimeControl "180+2"]

1. d4 {[%emt 0:00:00]} Nf6 {[%emt 0:00:05]} 2. c4 {[%emt 0:00:01]} g6 {[%emt 0:
00:00]} 3. Nc3 {[%emt 0:00:00]} Bg7 {[%emt 0:00:00]} 4. Nf3 {[%emt 0:00:00]}
O-O {[%emt 0:00:07]} 5. g3 {[%emt 0:00:05]} d6 {[%emt 0:00:00]} 6. Bg2 {
[%emt 0:00:00]} Nc6 {[%emt 0:00:00]} 7. O-O {[%emt 0:00:11]} Bf5 {[%emt 0:00:
00]} 8. b3 {[%emt 0:00:10]} Ne4 {[%emt 0:00:00]} 9. Bb2 {[%emt 0:00:00]} Nxc3 {
[%emt 0:00:00]} 10. Bxc3 {[%emt 0:00:02]} Be4 {[%emt 0:00:00]} 11. Qd2 {
[%emt 0:00:00]} e5 {[%emt 0:00:06]} 12. d5 {[%emt 0:00:00]} Ne7 {[%emt 0:00:02]
} 13. Rfd1 {[%emt 0:00:07]} h6 {[%emt 0:00:09]} 14. Bh3 {[%emt 0:00:07]} Bf5 {
[%emt 0:00:08]} 15. Bg2 {[%emt 0:00:00]} Bd7 {[%emt 0:00:07]} 16. c5 {[%emt 0:
00:10]} f5 {[%emt 0:00:06]} 17. cxd6 {[%emt 0:00:11]} cxd6 {[%emt 0:00:00]} 18.
Rac1 {[%emt 0:00:00]} f4 {[%emt 0:00:07]} 19. Bb4 {[%emt 0:00:12]} Nc8 {
[%emt 0:00:00]} 20. Qc2 {[%emt 0:00:07]} Bb5 {[%emt 0:00:48]} 21. a4 {[%emt 0:
00:28]} Ba6 {[%emt 0:00:03]} 22. Nh4 {[%emt 0:00:19]} g5 {[%emt 0:00:41]} 23.
Nf5 {[%emt 0:00:04]} Qf6 {[%emt 0:00:07]} 24. Be4 {[%emt 0:00:03]} Ne7 {
[%emt 0:00:28]} 25. Nxe7+ {[%emt 0:00:29]} Qxe7 {[%emt 0:00:01]} 26. Qc7 {
[%emt 0:00:00]} Qxc7 {[%emt 0:00:26]} 27. Rxc7 {[%emt 0:00:00]} Rad8 {[%emt 0:
00:20]} 28. Rd2 {[%emt 0:00:09]} Rf7 {[%emt 0:00:03]} 29. Rdc2 {[%emt 0:00:09]}
Rdd7 {[%emt 0:00:04]} 30. Rxd7 {[%emt 0:00:05]} Rxd7 {[%emt 0:00:00]} 31. Bf5 {
[%emt 0:00:06]} Rd8 {[%emt 0:00:02]} 32. Rc7 {[%emt 0:00:14]} Bf8 {[%emt 0:00:
04]} 33. e4 {[%emt 0:00:16]} f3 {[%emt 0:00:02]} 34. Bg4 {[%emt 0:00:09]} Be2 {
[%emt 0:00:00]} 35. Rxb7 {[%emt 0:00:04]} a6 {[%emt 0:00:04]} 36. Ba5 {[%emt 0:
00:05]} Ra8 {[%emt 0:00:00]} 37. Bc7 {[%emt 0:00:02]} a5 {[%emt 0:00:04]} 38.
Rb8 {[%emt 0:00:07]} Rxb8 {[%emt 0:00:00]} 39. Bxb8 {[%emt 0:00:00]} Bd1 {
[%emt 0:00:03]} 40. Bc7 {[%emt 0:00:04]} Bxb3 {[%emt 0:00:01]} 41. Bd7 {
[%emt 0:00:00]} Bc2 {[%emt 0:00:00]} 42. Bxa5 {[%emt 0:00:04]} Bxe4 {[%emt 0:
00:00]} 43. Bc6 {[%emt 0:00:01]} Bd3 {[%emt 0:00:05]} 44. Bc7 {[%emt 0:00:05]}
Be7 {[%emt 0:00:00]} 45. Bb5 {[%emt 0:00:00]} Be4 {[%emt 0:00:05]} 46. Bc4 {
[%emt 0:00:00]} Bf5 {[%emt 0:00:00]} 47. a5 {[%emt 0:00:00]} Bc8 {[%emt 0:00:
03]} 48. a6 {[%emt 0:00:02]} Kf8 {[%emt 0:00:00]} 49. Bb5 {[%emt 0:00:03]} Bxa6
{[%emt 0:00:02]} 50. Bxa6 {[%emt 0:00:00]} e4 {[%emt 0:00:00]} 51. Bc4 {
[%emt 0:00:02]} Kf7 {[%emt 0:00:01]} 52. Bb6 {[%emt 0:00:05]} Kf6 {[%emt 0:00:
01]} 53. Bd4+ {[%emt 0:00:00]} Kf5 {[%emt 0:00:00]} 54. Ba6 {[%emt 0:00:00]} h5
{[%emt 0:00:04]} 55. Bc8+ {[%emt 0:00:02]} Kg6 {[%emt 0:00:02]} 56. h3 {
[%emt 0:00:00]} Bd8 {[%emt 0:00:00]} 57. g4 {[%emt 0:00:04]} hxg4 {[%emt 0:00:
03]} 58. hxg4 {[%emt 0:00:00]} Bf6 {[%emt 0:00:00]} 59. Bf5+ {[%emt 0:00:01]}
Kg7 {[%emt 0:00:02]} 60. Bxf6+ {[%emt 0:00:01]} Kxf6 {[%emt 0:00:00]} 61. Bxe4
{[%emt 0:00:03]} Ke5 {[%emt 0:00:03]} 1-0